fUST/lending_fUST_20250716
["ID","MTS","AMOUNT","RATE_DAILY","PERIOD"]
[372551041,1752679875082,-590.117061,0.00024998,7]
[372551042,1752679875092,-151.0,0.00024998,7]
[372551043,1752679875102,-151.0,0.00024998,7]
[372551044,1752679875111,-217.523133,0.00024998,7]
[372551045,1752679875121,-217.523133,0.00024998,7]
[372551046,1752679875131,-573.17101,0.00024998,7]
[372551047,1752679875140,-573.17101,0.00024998,7]
[372551048,1752679875149,-234.803274,0.00024998,7]
[372551049,1752679875160,-234.803274,0.00024998,7]
[372551050,1752679875171,-156.811072,0.00024998,7]
[372551051,1752679875182,-151.0,0.00024998,7]
[372551052,1752679875192,-156.811072,0.00024998,7]
[372551053,1752679875201,-151.0,0.00024998,7]
[372551054,1752679875211,-547.38591,0.00024998,7]
[372551055,1752679875224,-547.38591,0.00024998,7]
[372551056,1752679875234,-151.0,0.00024998,7]
[372551057,1752679875244,-151.0,0.00024998,7]
[372551058,1752679875253,-151.0,0.00024998,7]
[372551059,1752679875263,-202.048446,0.00024998,7]
[372551060,1752679875272,-202.048446,0.00024998,7]
[372551061,1752679875283,-974.670941,0.00024998,7]
[372551062,1752679875292,-974.670941,0.00024998,7]
[372551063,1752679875302,-522.590694,0.00024998,7]
[372551064,1752679875312,-522.590694,0.00024998,7]
[372551065,1752679875322,-2000.0,0.00024999,20]
[372551066,1752679875332,-2000.0,0.00024999,20]
[372551067,1752679875342,-2000.0,0.00024999,20]
[372551068,1752679875351,-2000.0,0.00024999,20]
[372551069,1752679875361,-2000.0,0.00024999,20]
[372551070,1752679875371,-2000.0,0.00024999,20]
[372551071,1752679875382,-1999.94,0.00024999,10]
[372551072,1752679875392,-161.0,0.00025,7]
[372551073,1752679875403,-215.061633,0.00025,7]
[372551074,1752679875412,-212.0,0.00025,7]
[372551075,1752679875422,-164.0,0.00025,7]
[372551076,1752679875431,-164.0,0.00025,7]
[372551077,1752679875442,-4129.61236525,0.00025,30]
[372551078,1752679875451,-48988.37,0.00025,7]
[372551079,1752679875460,-401.495329,0.00025,2]
[372551080,1752679875473,-151.0,0.00025,7]
[372551081,1752679875483,-214.40824756,0.00025,10]
[372551082,1752679875492,-42936.87765248,0.00025,2]
[372551083,1752679875502,-44058.41008178,0.00025,60]
[372551084,1752679875511,-2617.55073514,0.00025,2]
[372551085,1752679875521,-207.56611281,0.00025,2]
[372551086,1752679875530,-10364.0,0.00025,2]
[372551087,1752679875540,-358.37095982,0.00025,2]
[372551088,1752679875549,-500.0,0.00025,2]
[372551089,1752679875559,-300.0,0.00025,30]
[372551090,1752679875569,-120000.0,0.00025,2]
[372551091,1752679875579,-200.0,0.00025,7]
[372551092,1752679875588,-1392.31511086,0.00025,5]
[372551093,1752679875599,-600.0,0.00025,2]
[372551094,1752679875608,-2727.03501073,0.00025,2]
[372551095,1752679875618,-4279.04,0.00025,7]
[372551096,1752679875627,-49992.79,0.00025,2]
[372551097,1752679875636,-239.84119403,0.00025003,2]
[372551098,1752679875646,-205.0,0.0002506,2]
[372551099,1752679875655,-205.0,0.0002506,2]
[372551100,1752679875666,-205.0,0.0002506,2]
[372551101,1752679875676,-207.0,0.0002506,2]
[372551102,1752679875687,-2200.0,0.00025068,2]
[372551103,1752679875698,-654.664,0.00025068,2]
[372551104,1752679875708,-9021.18677679,0.00025072,12]
[372551105,1752679875722,-5888.0,0.00025074,2]
[372551106,1752679875733,-360.683163,0.00025135,7]
[372551107,1752679875742,-160.0,0.0002515,12]
[372551108,1752679875752,-360.683163,0.00025189,10]
[372551109,1752679875761,-254.36594916,0.00025205,2]
[372551110,1752679875771,-617.79,0.00025205,2]
[372551111,1752679875781,-460.0,0.00025205,2]
[372551112,1752679875792,-561.35,0.00025205,2]
[372551113,1752679875801,-466.62,0.00025205,2]
[372551114,1752679875811,-779.28,0.00025205,2]
[372551115,1752679875822,-258.48006495,0.00025205,2]
[372551116,1752679875831,-939.24,0.00025205,2]
[372551117,1752679875841,-1185.85,0.00025205,2]
[372551118,1752679875851,-1429.97,0.00025205,2]
[372551119,1752679875861,-987.04,0.00025205,2]
[372551120,1752679875871,-844.39,0.00025205,2]
[372551121,1752679875881,-594.46,0.00025205,2]
[372551122,1752679875891,-5117.18,0.00025205,2]
[372551123,1752679875900,-778.65,0.00025205,2]
[372551124,1752679875910,-471.95,0.00025205,2]
[372551125,1752679875919,-10006.83,0.00025205,2]
[372551126,1752679875929,-506.45,0.00025205,2]
[372551127,1752679875938,-687.27,0.00025205,2]
[372551128,1752679875949,-2438.56,0.00025205,2]
[372551129,1752679875958,-639.69,0.00025205,2]
[372551130,1752679875971,-521.65,0.00025205,2]
[372551131,1752679875981,-4147.13,0.00025205,2]
[372551132,1752679875991,-233.59325541,0.00025205,2]
[372551133,1752679876001,-6962.62,0.00025205,2]
[372551134,1752679876011,-959.76,0.00025205,2]
[372551135,1752679876020,-2589.89,0.00025205,2]
[372551136,1752679876030,-3564.08,0.00025205,2]
[372551137,1752679876040,-1879.23,0.00025205,2]
[372551138,1752679876050,-1196.19,0.00025205,2]
[372551139,1752679876060,-2089.21,0.00025205,2]
[372551140,1752679876070,-13889.83,0.00025205,2]
[372551141,1752679876079,-864.03,0.00025205,2]
[372551142,1752679876089,-464.03,0.00025205,2]
[372551143,1752679876098,-942.0,0.00025205,2]
[372551144,1752679876108,-1156.65,0.00025205,2]
[372551145,1752679876117,-564.35,0.00025205,2]
[372551146,1752679876128,-5710.44,0.00025205,2]
[372551147,1752679876138,-9435.4,0.00025205,2]
[372551148,1752679876147,-1063.71,0.00025205,2]
[372551149,1752679876157,-4062.86,0.00025205,2]
[372551150,1752679876168,-1067.68,0.00025205,2]
[372551151,1752679876178,-1081.66,0.00025205,2]
[372551152,1752679876188,-801.73,0.00025205,2]
[372551153,1752679876197,-801.73,0.00025205,2]
[372551154,1752679876206,-652.86,0.00025205,2]
[372551155,1752679876220,-662.38,0.00025205,2]
[372551156,1752679876229,-1058.85,0.00025205,2]
[372551157,1752679876239,-917.58,0.00025205,2]
[372551158,1752679876249,-4731.5,0.00025205,2]
[372551159,1752679876259,-5295.6,0.00025205,2]
[372551160,1752679876269,-3263.9,0.00025205,2]
[372551161,1752679876279,-2186.29,0.00025205,2]
[372551162,1752679876290,-1895.02,0.00025205,2]
[372551163,1752679876299,-5028.57,0.00025205,2]
[372551164,1752679876309,-582.88,0.00025205,2]
[372551165,1752679876318,-1167.8,0.00025205,2]
[372551166,1752679876328,-469.31,0.00025205,2]
[372551167,1752679876338,-1440.99,0.00025205,2]
[372551168,1752679876348,-467.63,0.00025205,2]
[372551169,1752679876359,-500.0,0.00025206,2]
[372551170,1752679876369,-151.0,0.00025206,2]
[372551171,1752679876378,-199.56185223,0.00025206,2]
[372551172,1752679876388,-500.0,0.00025206,2]
[372551173,1752679876398,-151.0,0.00025206,2]
[372551174,1752679876408,-151.0,0.00025206,2]
[372551175,1752679876420,-494.5938891,0.00025206,2]
[372551176,1752679876430,-500.0,0.00025206,2]
[372551177,1752679876441,-500.0,0.00025206,2]
[372551178,1752679876452,-500.0,0.00025206,2]
[372551179,1752679876462,-151.0,0.00025206,2]
[372551180,1752679876480,-500.0,0.00025206,2]
[372551181,1752679876491,-1734.0,0.00025206,2]
[372551182,1752679876502,-500.0,0.00025206,2]
[372551183,1752679876513,-517.20393213,0.00025206,2]
[372551184,1752679876524,-308.13072546,0.00025206,2]
[372551185,1752679876536,-223.92121606,0.00025206,2]
[372551186,1752679876547,-500.0,0.00025206,2]
[372551187,1752679876558,-401.57782193,0.00025206,2]
[372551188,1752679876569,-151.56777351,0.00025206,2]
[372551189,1752679876581,-151.0,0.00025206,2]
[372551190,1752679876591,-500.0,0.00025206,2]
[372551191,1752679876603,-1060.0,0.00025241,2]
[372551192,1752679876613,-9021.18677679,0.00025279,12]
[372551193,1752679876626,-226.9605997,0.00025292,2]
[372551194,1752679876637,-6110.02234996,0.00025302,2]
[372551195,1752679876648,-5000.0,0.00025302,6]
[372551196,1752679876659,-5000.0,0.00025302,2]
[372551197,1752679876670,-5000.0,0.00025302,5]
[372551198,1752679876682,-5000.0,0.00025302,5]
[372551199,1752679876692,-429.1687796,0.00025328,2]
[372551200,1752679876704,-429.1687796,0.00025328,2]
[372551201,1752679876716,-429.1687796,0.00025328,2]
[372551202,1752679876737,-298.9,0.00025333,7]
[372551203,1752679876747,-4330.86530472,0.00025347,2]
[372551204,1752679876758,-205.0,0.0002538,2]
[372551205,1752679876768,-205.0,0.0002538,2]
[372551206,1752679876778,-205.0,0.0002538,2]
[372551207,1752679876789,-207.0,0.0002538,2]
[372551208,1752679876799,-1762.429192,0.0002538,5]
[372551209,1752679876810,-900.0,0.00025399,2]
[372551210,1752679876819,-1000.0,0.000254,5]
[372551211,1752679876829,-763.18,0.000254,31]
[372551212,1752679876839,-763.18,0.000254,31]
[372551213,1752679876848,-763.18,0.000254,31]
[372551214,1752679876858,-763.18,0.000254,31]
[372551215,1752679876982,-763.18,0.000254,31]
[372551216,1752679876993,-763.18,0.000254,31]
[372551217,1752679877003,-763.18,0.000254,31]
[372551218,1752679877013,-763.18,0.000254,31]
[372551219,1752679877023,-763.18,0.000254,31]
[372551220,1752679877033,-763.18,0.000254,31]
[372551221,1752679877043,-763.18,0.000254,31]
[372551222,1752679877053,-763.18,0.000254,31]
[372551223,1752679877062,-763.18,0.000254,31]
[372551224,1752679877072,-763.18,0.000254,31]
[372551225,1752679877081,-763.18,0.000254,31]
[372551226,1752679877091,-763.18,0.000254,31]
[372551227,1752679877101,-1000.0,0.0002542,5]
[372551228,1752679877110,-1000.0,0.0002544,5]
[372551229,1752679877120,-1000.0,0.0002546,5]
[372551230,1752679877130,-617.9660135,0.00025479,2]
[372551231,1752679877140,-156.13445313,0.00025479,2]
[372551232,1752679877150,-561.42951477,0.00025479,2]
[372551233,1752679877160,-466.71642408,0.00025479,2]
[372551234,1752679877170,-779.3113231,0.00025479,2]
[372551235,1752679877180,-939.32317748,0.00025479,2]
[372551236,1752679877191,-1185.92622255,0.00025479,2]
[372551237,1752679877200,-1430.04037382,0.00025479,2]
[372551238,1752679877209,-987.16287452,0.00025479,2]
[372551239,1752679877221,-844.44381368,0.00025479,2]
[372551240,1752679877233,-594.52591399,0.00025479,2]
[372551241,1752679877243,-5117.30032116,0.00025479,2]
[372551242,1752679877252,-778.73601679,0.00025479,2]
[372551243,1752679877263,-472.0430995,0.00025479,2]
[372551244,1752679877273,-10007.0091583,0.00025479,2]
[372551245,1752679877282,-506.59686413,0.00025479,2]
[372551246,1752679877292,-687.39,0.00025479,2]
[372551247,1752679877301,-2438.61095116,0.00025479,2]
[372551248,1752679877311,-639.76881088,0.00025479,2]
[372551249,1752679877320,-521.69170626,0.00025479,2]
[372551250,1752679877330,-4147.28326557,0.00025479,2]
[372551251,1752679877340,-6962.76680404,0.00025479,2]
[372551252,1752679877349,-959.97121252,0.00025479,2]
[372551253,1752679877359,-2590.06036734,0.00025479,2]
[372551254,1752679877369,-3564.1450024,0.00025479,2]
[372551255,1752679877379,-1879.35136691,0.00025479,2]
[372551256,1752679877388,-1196.24368732,0.00025479,2]
[372551257,1752679877398,-2089.25588519,0.00025479,2]
[372551258,1752679877407,-13890.05400173,0.00025479,2]
[372551259,1752679877417,-864.16496025,0.00025479,2]
[372551260,1752679877427,-464.26307163,0.00025479,2]
[372551261,1752679877438,-942.06515361,0.00025479,2]
[372551262,1752679877449,-1156.81337298,0.00025479,2]
[372551263,1752679877459,-564.36145704,0.00025479,2]
[372551264,1752679877471,-5710.66404338,0.00025479,2]
[372551265,1752679877482,-9435.49339627,0.00025479,2]
[372551266,1752679877491,-1063.79650395,0.00025479,2]
[372551267,1752679877502,-4062.99249149,0.00025479,2]
[372551268,1752679877511,-1067.69076187,0.00025479,2]
[372551269,1752679877521,-1081.87553637,0.00025479,2]
[372551270,1752679877531,-801.81,0.00025479,2]
[372551271,1752679877541,-801.78,0.00025479,2]
[372551272,1752679877551,-653.03257554,0.00025479,2]
[372551273,1752679877560,-662.4,0.00025479,2]
[372551274,1752679877570,-1058.9114832,0.00025479,2]
[372551275,1752679877581,-917.79,0.00025479,2]
[372551276,1752679877592,-4731.55714107,0.00025479,2]
[372551277,1752679877602,-5295.74294534,0.00025479,2]
[372551278,1752679877611,-3263.93379112,0.00025479,2]
[372551279,1752679877621,-2186.30999762,0.00025479,2]
[372551280,1752679877631,-1895.10945715,0.00025479,2]
[372551281,1752679877642,-5028.71052557,0.00025479,2]
[372551282,1752679877651,-582.97928204,0.00025479,2]
[372551283,1752679877662,-1167.86350672,0.00025479,2]
[372551284,1752679877671,-469.49128678,0.00025479,2]
[372551285,1752679877682,-1441.21398302,0.00025479,2]
[372551286,1752679877692,-467.85295514,0.00025479,2]
[372551287,1752679877702,-500.0,0.0002548,2]
[372551288,1752679877712,-191.13645195,0.0002548,2]
[372551289,1752679877727,-500.0,0.0002548,2]
[372551290,1752679877737,-151.0,0.0002548,2]
[372551291,1752679877746,-151.0,0.0002548,2]
[372551292,1752679877756,-500.0,0.0002548,2]
[372551293,1752679877766,-500.0,0.0002548,2]
[372551294,1752679877776,-420.52684723,0.0002548,2]
[372551295,1752679877787,-500.0,0.0002548,2]
[372551296,1752679877797,-1734.0,0.0002548,2]
[372551297,1752679877807,-418.79588903,0.0002548,2]
[372551298,1752679877817,-500.0,0.0002548,2]
[372551299,1752679877827,-151.0,0.0002548,2]
[372551300,1752679877837,-500.0,0.0002548,2]
[372551301,1752679877846,-1000.0,0.0002548,5]
[372551302,1752679877856,-9021.18677679,0.00025486,13]
[372551303,1752679877865,-2000.0,0.000255,2]
[372551304,1752679877875,-2000.0,0.000255,2]
[372551305,1752679877885,-1000.0,0.000255,5]
[372551306,1752679877895,-1600.0,0.00025505,2]
[372551307,1752679877905,-1000.0,0.0002552,5]
[372551308,1752679877915,-605.54590567,0.00025527,16]
[372551309,1752679877925,-1000.0,0.0002554,5]
[372551310,1752679877935,-1362.54632658,0.00025552,16]
[372551311,1752679877944,-1600.0,0.00025558,2]
[372551312,1752679877954,-1000.0,0.0002556,5]
[372551313,1752679877963,-1000.0,0.0002558,5]
[372551314,1752679877977,-1127.071532,0.0002558,5]
[372551315,1752679877987,-160.0,0.00025599,13]
[372551316,1752679877997,-161.00384161,0.00025599,5]
[372551317,1752679878007,-2000.0,0.000256,2]
[372551318,1752679878017,-2000.0,0.000256,2]
[372551319,1752679878027,-457.001417,0.000256,5]
[372551320,1752679878037,-1000.0,0.000256,5]
[372551321,1752679878047,-1000.0,0.000256,5]
[372551322,1752679878057,-360.683163,0.00025618,2]
[372551323,1752679878066,-205.0,0.0002569,2]
[372551324,1752679878077,-205.0,0.0002569,2]
[372551325,1752679878087,-205.0,0.0002569,2]
[372551326,1752679878099,-532.67,0.0002569,30]
[372551327,1752679878110,-207.0,0.0002569,2]
[372551328,1752679878120,-9021.18677679,0.00025693,13]
[372551329,1752679878131,-500.0,0.00025698,2]
[372551330,1752679878142,-298.9,0.00025698,7]
[372551331,1752679878152,-360.683163,0.00025698,20]
[372551332,1752679878163,-360.683163,0.00025698,20]
[372551333,1752679878173,-360.683163,0.00025698,20]
[372551334,1752679878183,-360.683163,0.00025698,20]
[372551335,1752679878193,-360.683163,0.00025698,20]
[372551336,1752679878202,-2249.9321,0.000257,2]
[372551337,1752679878212,-763.18,0.000257,31]
[372551338,1752679878228,-763.18,0.000257,31]
[372551339,1752679878238,-763.18,0.000257,31]
[372551340,1752679878248,-763.18,0.000257,31]
[372551341,1752679878258,-763.18,0.000257,31]
[372551342,1752679878277,-763.18,0.000257,31]
[372551343,1752679878290,-763.18,0.000257,31]
[372551344,1752679878300,-763.18,0.000257,31]
[372551345,1752679878310,-763.18,0.000257,31]
[372551346,1752679878322,-763.18,0.000257,31]
[372551347,1752679878332,-763.18,0.000257,31]
[372551348,1752679878342,-763.18,0.000257,31]
[372551349,1752679878352,-763.18,0.000257,31]
[372551350,1752679878362,-763.18,0.000257,31]
[372551351,1752679878372,-763.18,0.000257,31]
[372551352,1752679878381,-763.18,0.000257,31]
[372551353,1752679878391,-763.18,0.000257,31]
[372551354,1752679878401,-763.18,0.000257,31]
[372551355,1752679878411,-763.18,0.000257,31]
[372551356,1752679878422,-763.18,0.000257,31]
[372551357,1752679878432,-763.18,0.000257,31]
[372551358,1752679878442,-763.18,0.000257,31]
[372551359,1752679878452,-763.18,0.000257,31]
[372551360,1752679878462,-900.0,0.00025706,2]
[372551361,1752679878474,-656.88546821,0.00025726,50]
[372551362,1752679878485,-900.0,0.00025753,2]
[372551363,1752679878495,-500.0,0.00025754,2]
[372551364,1752679878505,-500.0,0.00025754,2]
[372551365,1752679878515,-500.0,0.00025754,2]
[372551366,1752679878525,-1734.0,0.00025754,2]
[372551367,1752679878535,-500.0,0.00025754,2]
[372551368,1752679878546,-181.48423767,0.00025754,2]
[372551369,1752679878557,-500.0,0.00025754,2]
[372551370,1752679878567,-212.0,0.00025775,7]
[372551371,1752679878578,-2620.46,0.00025786,4]
[372551372,1752679878588,-1600.0,0.00025788,2]
[372551373,1752679878599,-4330.86530472,0.00025788,2]
[372551374,1752679878608,-1160.0,0.00025789,2]
[372551375,1752679878618,-900.0,0.00025808,2]
[372551376,1752679878628,-912.06459779,0.00025808,16]
[372551377,1752679878638,-805.586767,0.00025819,7]
[372551378,1752679878648,-385.3240751,0.00025819,7]
[372551379,1752679878828,-268.46692552,0.00025819,7]
[372551380,1752679879037,-458.22011137,0.00019178,2]
[372551381,1752679879085,-1.77988863,0.00019178,2]
[372551382,1752679879095,-460.0,0.00019178,2]
[372551383,1752679879105,-460.0,0.00019178,2]
[372551384,1752679879115,-460.0,0.00019452,2]
[372551385,1752679879125,-460.0,0.00019726,2]
[372551386,1752679879135,-460.0,0.0002,2]
[372551387,1752679879144,-460.0,0.0002,2]
[372551388,1752679879154,-460.0,0.00020273,2]
[372551389,1752679879164,-460.0,0.00020273,2]
[372551390,1752679879174,-4723.11519387,0.00020314,3]
[372551391,1752679879629,-219.96193981,0.00018964,2]
[372551392,1752679879640,-104.58806019,0.00019168,3]
[372551393,1752679879651,-566.39193981,0.00019168,3]
[372551394,1752679879660,-460.0,0.00019178,2]
[372551395,1752679879670,-460.0,0.00019178,2]
[372551396,1752679879679,-419.68937188,0.00019178,2]
[372551397,1752679879692,-460.0,0.00019178,2]
[372551398,1752679879701,-460.0,0.00019452,2]
[372551399,1752679879711,-460.0,0.00019452,2]
[372551400,1752679879720,-155.0,0.00019726,2]
[372551401,1752679879731,-7882.37612521,0.00020314,3]
[372551402,1752679879740,-460.0,0.00020547,2]
[372551403,1752679879749,-460.0,0.00020547,2]
[372551404,1752679879758,-460.0,0.00020821,2]
[372551405,1752679879769,-460.0,0.00020821,2]
[372551406,1752679879778,-460.0,0.00021095,2]
[372551407,1752679879788,-541.03,0.00021095,2]
[372551408,1752679879798,-460.0,0.00021095,2]
[372551409,1752679879807,-460.0,0.00021369,2]
[372551410,1752679879816,-541.03,0.00021369,2]
[372551411,1752679879825,-460.0,0.00021369,2]
[372551412,1752679879835,-460.0,0.00021643,2]
[372551413,1752679879844,-460.0,0.00021643,2]
[372551414,1752679879854,-541.03,0.00021643,2]
[372551415,1752679879863,-460.0,0.00021643,2]
[372551416,1752679879873,-460.0,0.00021917,2]
[372551417,1752679879882,-460.0,0.00021917,2]
[372551418,1752679879892,-541.03,0.00021917,2]
[372551419,1752679879901,-460.0,0.00021917,2]
[372551420,1752679879911,-4490.77785257,0.00022,7]
[372551421,1752679879922,-2485.05214743,0.00022,7]
[372551422,1752679879932,-292.49,0.00022191,2]
[372551423,1752679879942,-460.0,0.00022191,2]
[372551424,1752679879952,-541.03,0.00022191,2]
[372551425,1752679879961,-460.0,0.00022191,2]
[372551426,1752679879973,-460.0,0.00022465,2]
[372551427,1752679879983,-541.03,0.00022465,2]
[372551428,1752679879992,-460.0,0.00022465,2]
[372551429,1752679880002,-460.0,0.00022739,2]
[372551430,1752679880011,-541.03,0.00022739,2]
[372551431,1752679880020,-460.0,0.00022739,2]
[372551432,1752679880029,-6975.83,0.00023,7]
[372551433,1752679880039,-1586.13,0.00023013,2]
[372551434,1752679880049,-460.0,0.00023013,2]
[372551435,1752679880059,-541.03,0.00023013,2]
[372551436,1752679880068,-1586.13,0.00023287,2]
[372551437,1752679880078,-516.3,0.00023287,2]
[372551438,1752679880088,-541.03,0.00023287,2]
[372551439,1752679880097,-1586.13,0.00023561,2]
[372551440,1752679880107,-541.03,0.00023561,2]
[372551441,1752679880117,-1586.13,0.00023835,2]
[372551442,1752679880127,-6975.83,0.00024,7]
[372551443,1752679880137,-1586.13,0.00024109,2]
[372551444,1752679880147,-446.1830655,0.00024333,2]
[372551445,1752679880157,-1586.13,0.00024383,2]
[372551446,1752679880167,-1586.13,0.00024657,2]
[372551447,1752679880177,-1000.0,0.000248,2]
[372551448,1752679880186,-1586.13,0.00024931,2]
[372551449,1752679880196,-6975.83,0.00025,7]
[372551450,1752679880207,-1586.13,0.00025205,2]
[372551451,1752679880216,-1586.35807212,0.00025479,2]
[372551452,1752679880231,-151.79576638,0.00025819,7]
[372551453,1752679880240,-805.586767,0.00025819,7]
[372551454,1752679880250,-805.586767,0.00025819,7]
[372551455,1752679880260,-805.586767,0.00025819,7]
[372551456,1752679880269,-805.586767,0.00025819,7]
[372551457,1752679880279,-805.586767,0.00025819,7]
[372551458,1752679880289,-805.586773,0.00025819,7]
[372551459,1752679880299,-151.0,0.00025819,7]
[372551460,1752679880308,-151.0,0.00025819,7]
[372551461,1752679880318,-151.0,0.00025819,7]
[372551462,1752679880327,-1500.0,0.00025819,14]
[372551463,1752679880337,-1500.0,0.00025819,14]
[372551464,1752679880346,-1500.0,0.00025819,14]
[372551465,1752679880356,-1500.0,0.00025819,14]
[372551466,1752679880366,-1500.0,0.00025819,14]
[372551467,1752679880375,-1500.0,0.00025819,14]
[372551468,1752679880385,-1500.0,0.00025819,14]
[372551469,1752679880406,-1500.0,0.00025819,14]
[372551470,1752679880416,-1500.0,0.00025819,14]
[372551471,1752679880426,-1500.0,0.00025819,14]
[372551472,1752679880436,-1500.0,0.00025819,14]
[372551473,1752679880446,-1500.0,0.00025819,14]
[372551474,1752679880455,-801.383055,0.00025819,7]
[372551475,1752679880465,-801.383055,0.00025819,7]
[372551476,1752679880477,-801.383055,0.00025819,7]
[372551477,1752679880487,-801.383055,0.00025819,7]
[372551478,1752679880497,-801.383055,0.00025819,7]
[372551479,1752679880507,-801.383055,0.00025819,7]
[372551480,1752679880517,-801.383055,0.00025819,7]
[372551481,1752679880528,-801.383055,0.00025819,7]
[372551482,1752679880538,-801.383055,0.00025819,7]
[372551483,1752679880548,-801.383055,0.00025819,7]
[372551484,1752679880558,-801.383055,0.00025819,7]
[372551485,1752679880569,-801.383055,0.00025819,7]
[372551486,1752679880580,-801.383055,0.00025819,7]
[372551487,1752679880590,-801.383055,0.00025819,7]
[372551488,1752679880600,-801.383055,0.00025819,7]
[372551489,1752679880610,-801.383055,0.00025819,7]
[372551490,1752679880620,-801.383055,0.00025819,7]
[372551491,1752679880630,-801.383049,0.00025819,7]
[372551492,1752679880640,-285.198895,0.00025819,7]
[372551493,1752679880649,-309.362961,0.00025819,7]
[372551494,1752679880662,-309.362961,0.00025819,7]
[372551495,1752679880672,-309.362961,0.00025819,7]
[372551496,1752679880683,-309.362961,0.00025819,7]
[372551497,1752679880693,-309.362961,0.00025819,7]
[372551498,1752679880705,-309.362961,0.00025819,7]
[372551499,1752679880716,-309.362961,0.00025819,7]
[372551500,1752679880730,-309.362961,0.00025819,7]
[372551501,1752679880739,-309.362961,0.00025819,7]
[372551502,1752679880749,-309.362961,0.00025819,7]
[372551503,1752679880759,-309.362961,0.00025819,7]
[372551504,1752679880769,-309.362961,0.00025819,7]
[372551505,1752679880779,-309.362961,0.00025819,7]
[372551506,1752679880790,-309.362961,0.00025819,7]
[372551507,1752679880799,-309.362961,0.00025819,7]
[372551508,1752679880809,-309.362961,0.00025819,7]
[372551509,1752679880819,-309.362961,0.00025819,7]
[372551510,1752679880829,-309.362961,0.00025819,7]
[372551511,1752679880839,-309.362961,0.00025819,7]
[372551512,1752679880849,-309.362957,0.00025819,7]
[372551513,1752679880859,-458.715857,0.00025819,7]
[372551514,1752679880869,-458.715857,0.00025819,7]
[372551515,1752679880878,-225.537329,0.00025819,7]
[372551516,1752679880888,-225.537329,0.00025819,7]
[372551517,1752679880898,-151.0,0.00025831,7]
[372551518,1752679880908,-151.0,0.00025831,7]
[372551519,1752679880918,-151.0,0.00025831,7]
[372551520,1752679880928,-151.0,0.00025831,7]
[372551521,1752679880937,-151.0,0.00025831,7]
[372551522,1752679880947,-151.0,0.00025831,7]
[372551523,1752679880956,-173.561879,0.00025831,7]
[372551524,1752679880967,-151.0,0.00025831,7]
[372551525,1752679880979,-151.0,0.00025831,7]
[372551526,1752679880990,-151.0,0.00025831,7]
[372551527,1752679881000,-151.0,0.00025831,7]
[372551528,1752679881010,-151.0,0.00025831,7]
[372551529,1752679881020,-188.925865,0.00025831,7]
[372551530,1752679881030,-500.0,0.00025831,2]
[372551531,1752679881044,-727.733832,0.00025834,7]
[372551532,1752679881054,-727.733832,0.00025834,7]
[372551533,1752679881064,-431.881165,0.00025834,7]
[372551534,1752679881074,-431.881165,0.00025834,7]
[372551535,1752679881084,-151.0,0.00025847,7]
[372551536,1752679881094,-151.0,0.00025847,7]
[372551537,1752679881104,-151.0,0.00025847,7]
[372551538,1752679881114,-151.0,0.00025847,7]
[372551539,1752679881123,-151.0,0.00025847,7]
[372551540,1752679881134,-151.0,0.00025847,7]